fUSD/lending_fUSD_20240322
["ID","MTS","AMOUNT","RATE_DAILY","PERIOD"]
[320081521,1711140637590,-1283.29,0.00021917,2]
[320081522,1711140637600,-1283.29,0.00021917,2]
[320081523,1711140637609,-1283.29,0.00021917,2]
[320081524,1711140637620,-1283.29,0.00021917,2]
[320081525,1711140637630,-1112.03,0.00021917,2]
[320081526,1711140637639,-1283.29,0.00021917,2]
[320081527,1711140637649,-1283.29,0.00021917,2]
[320081528,1711140637658,-1283.29,0.00021917,2]
[320081529,1711140637667,-504.61535543,0.00021917,2]
[320081530,1711140637677,-1283.29,0.00021917,2]
[320081531,1711140637687,-1283.29,0.00021917,2]
[320081532,1711140637696,-1283.29,0.00021917,2]
[320081533,1711140637706,-500.0,0.00021917,2]
[320081534,1711140637716,-1283.29,0.00021917,2]
[320081535,1711140637725,-1283.29,0.00021917,2]
[320081536,1711140637735,-5697.25,0.00021917,2]
[320081537,1711140637744,-1283.29,0.00021917,2]
[320081538,1711140637753,-698.17,0.00021917,2]
[320081539,1711140637771,-1283.29,0.00021917,2]
[320081540,1711140637780,-1283.29,0.00021917,2]
[320081541,1711140637789,-1283.29,0.00021917,2]
[320081542,1711140637798,-1283.29,0.00021917,2]
[320081543,1711140637808,-1283.29,0.00021917,2]
[320081544,1711140637818,-1283.29,0.00021917,2]
[320081545,1711140637827,-1283.29,0.00021917,2]
[320081546,1711140637835,-1283.29,0.00021917,2]
[320081547,1711140637844,-1283.36,0.00021917,2]
[320081548,1711140637853,-500.0,0.00021917,2]
[320081549,1711140637862,-500.0,0.00021917,2]
[320081550,1711140637871,-500.0,0.00021917,2]
[320081551,1711140637881,-561.56,0.00021917,2]
[320081552,1711140637890,-750.34,0.00021917,2]
[320081553,1711140637900,-500.0,0.00021917,2]
[320081554,1711140637910,-633.73,0.00021917,2]
[320081555,1711140637919,-536.92,0.00021917,2]
[320081556,1711140637929,-500.0,0.00021917,2]
[320081557,1711140637939,-2139.37,0.00021917,2]
[320081558,1711140637949,-500.0,0.00021917,2]
[320081559,1711140637959,-1192.93,0.00021917,2]
[320081560,1711140637969,-500.0,0.00021917,2]
[320081561,1711140637980,-1663.07,0.00021917,2]
[320081562,1711140637990,-1541.46,0.00021917,2]
[320081563,1711140638000,-1656.33,0.00021917,2]
[320081564,1711140638011,-389.9810797,0.00021917,2]
[320081565,1711140638025,-500.0,0.00021917,2]
[320081566,1711140638035,-1527.2,0.00021917,2]
[320081567,1711140638044,-500.0,0.00021917,2]
[320081568,1711140638054,-500.0,0.00021917,2]
[320081569,1711140638064,-1427.78,0.00021917,2]
[320081571,1711140638074,-1505.67,0.00021917,2]
[320081572,1711140638084,-500.0,0.00021917,2]
[320081573,1711140638094,-2179.13,0.00021917,2]
[320081574,1711140638103,-1022.62,0.00021917,2]
[320081575,1711140638112,-1563.47,0.00021917,2]
[320081576,1711140638121,-1223.19,0.00021917,2]
[320081577,1711140638130,-319.8386666,0.00021917,2]
[320081579,1711140638139,-1408.86,0.00021917,2]
[320081581,1711140638148,-500.0,0.00021917,2]
[320081582,1711140638157,-776.35,0.00021917,2]
[320081584,1711140638167,-985.29,0.00021917,2]
[320081586,1711140638177,-500.0,0.00021917,2]
[320081588,1711140638186,-500.0,0.00021917,2]
[320081590,1711140638195,-1734.43,0.00021917,2]
[320081592,1711140638205,-500.0,0.00021917,2]
[320081595,1711140638214,-500.0,0.00021917,2]
[320081598,1711140638223,-500.0,0.00021917,2]
[320081600,1711140638232,-500.0,0.00021917,2]
[320081602,1711140638241,-500.0,0.00021917,2]
[320081604,1711140638250,-500.0,0.00021917,2]
[320081606,1711140638259,-500.0,0.00021917,2]
[320081608,1711140638274,-2314.39,0.00021917,2]
[320081610,1711140638283,-1348.2,0.00021917,2]
[320081613,1711140638292,-259.09,0.00021917,2]
[320081615,1711140638301,-1419.2,0.00021917,2]
[320081618,1711140638310,-1139.77,0.00021917,2]
[320081621,1711140638320,-500.0,0.00021917,2]
[320081623,1711140638329,-500.0,0.00021917,2]
[320081625,1711140638338,-500.0,0.00021917,2]
[320081627,1711140638348,-1495.06,0.00021917,2]
[320081629,1711140638357,-598.28,0.00021917,2]
[320081631,1711140638370,-500.0,0.00021917,2]
[320081633,1711140638379,-1579.97,0.00021917,2]
[320081635,1711140638388,-2160.35,0.00021917,2]
[320081637,1711140638398,-2327.7,0.00021917,2]
[320081639,1711140638408,-1737.12,0.00021917,2]
[320081641,1711140638417,-1808.21,0.00021917,2]
[320081643,1711140638426,-500.0,0.00021917,2]
[320081645,1711140638436,-537.59,0.00021917,2]
[320081647,1711140638445,-2068.63,0.00021917,2]
[320081650,1711140638455,-500.0,0.00021917,2]
[320081651,1711140638466,-500.0,0.00021917,2]
[320081653,1711140638475,-782.11,0.00021917,2]
[320081655,1711140638484,-954.69,0.00021917,2]
[320081657,1711140638493,-1126.44,0.00021917,2]
[320081660,1711140638503,-887.99,0.00021917,2]
[320081662,1711140638515,-500.0,0.00021917,2]
[320081664,1711140638525,-500.0,0.00021917,2]
[320081666,1711140638534,-1775.9,0.00021917,2]
[320081668,1711140638544,-500.0,0.00021917,2]
[320081670,1711140638554,-500.0,0.00021917,2]
[320081672,1711140638563,-1929.45,0.00021917,2]
[320081674,1711140638572,-502.86547098,0.00021917,2]
[320081675,1711140638581,-175.84422307,0.00021917,2]
[320081677,1711140638590,-500.0,0.00021917,2]
[320081679,1711140638599,-500.0,0.00021917,2]
[320081681,1711140638609,-1693.41,0.00021917,2]
[320081683,1711140638618,-580.99,0.00021917,2]
[320081685,1711140638627,-534.45,0.00021917,2]
[320081687,1711140638636,-500.0,0.00021917,2]
[320081689,1711140638645,-500.0,0.00021917,2]
[320081691,1711140638655,-1414.34,0.00021917,2]
[320081693,1711140638665,-500.0,0.00021917,2]
[320081695,1711140638675,-1400.78,0.00021917,2]
[320081697,1711140638685,-1932.94,0.00021917,2]
[320081699,1711140638695,-500.0,0.00021917,2]
[320081700,1711140638704,-680.51,0.00021917,2]
[320081702,1711140638713,-500.0,0.00021917,2]
[320081704,1711140638723,-500.24939792,0.00021917,2]
[320081706,1711140638733,-500.0,0.00021917,2]
[320081708,1711140638743,-500.0,0.00021917,2]
[320081710,1711140638754,-500.0,0.00021917,2]
[320081712,1711140638769,-500.0,0.00021917,2]
[320081713,1711140638779,-500.0,0.00021917,2]
[320081715,1711140638789,-500.0,0.00021917,2]
[320081717,1711140638799,-502.29236248,0.00021917,2]
[320081719,1711140638808,-982.76,0.00021917,2]
[320081721,1711140638818,-596.03,0.00021917,2]
[320081723,1711140638829,-512.99,0.00021917,2]
[320081725,1711140638838,-1599.36,0.00021917,2]
[320081728,1711140638848,-628.16,0.00021917,2]
[320081730,1711140638858,-891.67,0.00021917,2]
[320081732,1711140638868,-505.62578081,0.00021917,2]
[320081733,1711140638879,-856.02,0.00021917,2]
[320081736,1711140638889,-500.0,0.00021917,2]
[320081738,1711140638898,-500.0,0.00021917,2]
[320081739,1711140638907,-500.0,0.00021917,2]
[320081741,1711140638916,-500.0,0.00021917,2]
[320081743,1711140638925,-500.0,0.00021917,2]
[320081745,1711140638935,-674.45,0.00021917,2]
[320081747,1711140638944,-500.0,0.00021917,2]
[320081750,1711140638953,-500.0,0.00021917,2]
[320081751,1711140638962,-500.0,0.00021917,2]
[320081753,1711140638972,-500.0,0.00021917,2]
[320081755,1711140638982,-500.0,0.00021917,2]
[320081757,1711140638990,-500.0,0.00021917,2]
[320081759,1711140639000,-605.24,0.00021917,2]
[320081761,1711140639009,-500.0,0.00021917,2]
[320081764,1711140639023,-644.8,0.00021917,2]
[320081766,1711140639032,-603.76,0.00021917,2]
[320081768,1711140639041,-506.7982527,0.00021917,2]
[320081769,1711140639050,-500.0,0.00021917,2]
[320081771,1711140639060,-588.64,0.00021917,2]
[320081773,1711140639069,-500.0,0.00021917,2]
[320081775,1711140639078,-500.0,0.00021917,2]
[320081778,1711140639088,-952.06,0.00021917,2]
[320081780,1711140639098,-677.75,0.00021917,2]
[320081782,1711140639107,-1004.58,0.00021917,2]
[320081784,1711140639116,-913.1,0.00021917,2]
[320081785,1711140639125,-500.0,0.00021917,2]
[320081788,1711140639135,-1197.32,0.00021917,2]
[320081790,1711140639144,-500.0,0.00021917,2]
[320081792,1711140639153,-500.0,0.00021917,2]
[320081794,1711140639162,-570.91,0.00021917,2]
[320081796,1711140639171,-500.0,0.00021917,2]
[320081798,1711140639181,-908.09,0.00021917,2]
[320081800,1711140639189,-500.0,0.00021917,2]
[320081802,1711140639198,-1178.14,0.00021917,2]
[320081804,1711140639207,-500.0,0.00021917,2]
[320081805,1711140639216,-500.0,0.00021917,2]
[320081808,1711140639225,-500.0,0.00021917,2]
[320081809,1711140639234,-504.73710104,0.00021917,2]
[320081811,1711140639244,-503.60902791,0.00021917,2]
[320081813,1711140639253,-847.85,0.00021917,2]
[320081815,1711140639265,-500.0,0.00021917,2]
[320081818,1711140639275,-501.66552086,0.00021917,2]
[320081820,1711140639286,-552.16,0.00021917,2]
[320081822,1711140639295,-932.71,0.00021917,2]
[320081824,1711140639305,-500.0,0.00021917,2]
[320081826,1711140639314,-500.0,0.00021917,2]
[320081828,1711140639324,-500.0,0.00021917,2]
[320081830,1711140639333,-500.0,0.00021917,2]
[320081832,1711140639342,-500.0,0.00021917,2]
[320081834,1711140639351,-1132.7,0.00021917,2]
[320081836,1711140639362,-500.0,0.00021917,2]
[320081838,1711140639371,-500.0,0.00021917,2]
[320081840,1711140639381,-500.0,0.00021917,2]
[320081842,1711140639394,-500.0,0.00021917,2]
[320081843,1711140639403,-303.74247366,0.00021917,2]
[320081846,1711140639413,-535.36,0.00021917,2]
[320081847,1711140639422,-547.72,0.00021917,2]
[320081849,1711140639431,-512.14,0.00021917,2]
[320081851,1711140639441,-500.0,0.00021917,2]
[320081853,1711140639450,-500.0,0.00021917,2]
[320081855,1711140639460,-500.0,0.00021917,2]
[320081857,1711140639469,-500.0,0.00021917,2]
[320081859,1711140639479,-819.18,0.00021917,2]
[320081861,1711140639490,-1212.32,0.00021917,2]
[320081863,1711140639499,-500.0,0.00021917,2]
[320081866,1711140639508,-4419.1,0.00021917,2]
[320081868,1711140639521,-500.0,0.00021917,2]
[320081870,1711140639530,-501.68707922,0.00021917,2]
[320081872,1711140639540,-500.0,0.00021917,2]
[320081874,1711140639549,-500.0,0.00021917,2]
[320081876,1711140639559,-500.0,0.00021917,2]
[320081878,1711140639568,-2655.24,0.00021917,2]
[320081880,1711140639578,-500.0,0.00021917,2]
[320081882,1711140639589,-500.0,0.00021917,2]
[320081884,1711140639598,-500.0,0.00021917,2]
[320081886,1711140639607,-2656.9,0.00021917,2]
[320081888,1711140639617,-500.0,0.00021917,2]
[320081889,1711140639626,-646.09,0.00021917,2]
[320081891,1711140639636,-791.03,0.00021917,2]
[320081893,1711140639646,-1918.25,0.00021917,2]
[320081896,1711140639655,-500.0,0.00021917,2]
[320081898,1711140639669,-1251.41,0.00021917,2]
[320081900,1711140639679,-2928.98,0.00021917,2]
[320081902,1711140639689,-500.0,0.00021917,2]
[320081904,1711140639698,-503.1021849,0.00021917,2]
[320081906,1711140639707,-798.95,0.00021917,2]
[320081908,1711140639716,-500.0,0.00021917,2]
[320081910,1711140639725,-872.17,0.00021917,2]
[320081912,1711140639735,-500.0,0.00021917,2]
[320081914,1711140639744,-1140.32,0.00021917,2]
[320081916,1711140639753,-597.59,0.00021917,2]
[320081918,1711140639762,-500.0,0.00021917,2]
[320081944,1711140639995,-667.77,0.00021917,2]
[320081946,1711140640006,-782.12,0.00021917,2]
[320081948,1711140640015,-500.0,0.00021917,2]
[320081950,1711140640024,-500.0,0.00021917,2]
[320081952,1711140640034,-500.0,0.00021917,2]
[320081954,1711140640043,-2942.92,0.00021917,2]
[320081957,1711140640052,-500.0,0.00021917,2]
[320081959,1711140640061,-653.01,0.00021917,2]
[320081961,1711140640069,-500.0,0.00021917,2]
[320081963,1711140640078,-500.0,0.00021917,2]
[320081965,1711140640087,-500.0,0.00021917,2]
[320081967,1711140640097,-500.0,0.00021917,2]
[320081969,1711140640107,-1033.62,0.00021917,2]
[320081972,1711140640117,-500.0,0.00021917,2]
[320081975,1711140640126,-500.0,0.00021917,2]
[320081978,1711140640135,-500.0,0.00021917,2]
[320081980,1711140640144,-2663.22,0.00021917,2]
[320081982,1711140640154,-500.0,0.00021917,2]
[320081984,1711140640163,-3111.38,0.00021917,2]
[320081986,1711140640172,-1437.64,0.00021917,2]
[320081988,1711140640182,-698.66,0.00021917,2]
[320081990,1711140640191,-500.0,0.00021917,2]
[320081992,1711140640201,-502.69130494,0.00021917,2]
[320081994,1711140640210,-6130.81,0.00021917,2]
[320081996,1711140640219,-1372.14,0.00021917,2]
[320081998,1711140640228,-500.0,0.00021917,2]
[320082000,1711140640238,-500.0,0.00021917,2]
[320082002,1711140640247,-500.0,0.00021917,2]
[320082006,1711140640257,-500.0,0.00021917,2]
[320082009,1711140640269,-500.0,0.00021917,2]
[320082011,1711140640278,-500.0,0.00021917,2]
[320082013,1711140640288,-500.0,0.00021917,2]
[320082015,1711140640297,-500.0,0.00021917,2]
[320082017,1711140640307,-1149.81,0.00021917,2]
[320082019,1711140640316,-882.12,0.00021917,2]
[320082021,1711140640326,-1972.33,0.00021917,2]
[320082023,1711140640335,-1118.26,0.00021917,2]
[320082025,1711140640344,-500.0,0.00021917,2]
[320082028,1711140640354,-500.0,0.00021917,2]
[320082030,1711140640364,-500.0,0.00021917,2]
[320082032,1711140640373,-12591.32,0.00021917,2]
[320082034,1711140640382,-699.08,0.00021917,2]
[320082036,1711140640394,-1178.03,0.00021917,2]
[320082038,1711140640403,-500.0,0.00021917,2]
[320082040,1711140640413,-500.0,0.00021917,2]
[320082042,1711140640422,-2337.62,0.00021917,2]
[320082044,1711140640431,-1202.8,0.00021917,2]
[320082046,1711140640440,-5497.72,0.00021917,2]
[320082048,1711140640449,-542.75343133,0.00021917,2]
[320082051,1711140640459,-500.0,0.00021917,2]
[320082053,1711140640469,-12164.99,0.00021917,2]
[320082054,1711140640479,-500.0,0.00021917,2]
[320082056,1711140640488,-1147.38,0.00021917,2]
[320082059,1711140640498,-914.65,0.00021917,2]
[320082061,1711140640507,-500.0,0.00021917,2]
[320082063,1711140640519,-3494.59,0.00021917,2]
[320082065,1711140640529,-500.0,0.00021917,2]
[320082067,1711140640538,-1001.25,0.00021917,2]
[320082069,1711140640547,-500.0,0.00021917,2]
[320082071,1711140640558,-500.0,0.00021917,2]
[320082073,1711140640567,-500.0,0.00021917,2]
[320082075,1711140640577,-500.0,0.00021917,2]
[320082077,1711140640586,-679.96,0.00021917,2]
[320082079,1711140640596,-752.38,0.00021917,2]
[320082081,1711140640605,-500.0,0.00021917,2]
[320082083,1711140640614,-500.0,0.00021917,2]
[320082085,1711140640624,-500.0,0.00021917,2]
[320082087,1711140640633,-439.8615682,0.00021917,2]
[320082089,1711140640642,-2470.5,0.00021917,2]
[320082091,1711140640651,-1381.43,0.00021917,2]
[320082093,1711140640660,-7030.3,0.00021917,2]
[320082095,1711140640669,-1880.86,0.00021917,2]
[320082097,1711140640679,-500.0,0.00021917,2]
[320082099,1711140640688,-1932.51,0.00021917,2]
[320082101,1711140640697,-807.62,0.00021917,2]
[320082103,1711140640707,-500.0,0.00021917,2]
[320082105,1711140640716,-519.46,0.00021917,2]
[320082107,1711140640725,-500.0,0.00021917,2]
[320082109,1711140640734,-500.0,0.00021917,2]
[320082111,1711140640743,-785.4,0.00021917,2]
[320082113,1711140640753,-2768.26,0.00021917,2]
[320082115,1711140640762,-500.0,0.00021917,2]
[320082117,1711140640773,-500.0,0.00021917,2]
[320082119,1711140640782,-500.0,0.00021917,2]
[320082121,1711140640791,-500.0,0.00021917,2]
[320082123,1711140640801,-1672.89,0.00021917,2]
[320082125,1711140640811,-6717.05,0.00021917,2]
[320082127,1711140640820,-500.0,0.00021917,2]
[320082128,1711140640830,-500.0,0.00021917,2]
[320082129,1711140640839,-500.0,0.00021917,2]
[320082130,1711140640849,-500.0,0.00021917,2]
[320082131,1711140640858,-500.0,0.00021917,2]
[320082132,1711140640869,-500.0,0.00021917,2]
[320082133,1711140640878,-500.0,0.00021917,2]
[320082134,1711140640887,-500.0,0.00021917,2]
[320082135,1711140640896,-500.0,0.00021917,2]
[320082136,1711140640906,-592.88,0.00021917,2]
[320082137,1711140640916,-500.0,0.00021917,2]
[320082138,1711140640927,-3806.33,0.00021917,2]
[320082140,1711140640936,-962.99,0.00021917,2]
[320082141,1711140640946,-7006.08,0.00021917,2]
[320082143,1711140640955,-783.06,0.00021917,2]
[320082145,1711140640965,-1805.53,0.00021917,2]
[320082147,1711140640975,-1389.54,0.00021917,2]
[320082149,1711140640984,-2342.65,0.00021917,2]
[320082151,1711140640994,-1067.99,0.00021917,2]
[320082153,1711140641003,-1771.04,0.00021917,2]
[320082155,1711140641013,-500.0,0.00021917,2]
[320082157,1711140641025,-1373.55,0.00021917,2]
[320082160,1711140641034,-500.0,0.00021917,2]
[320082162,1711140641045,-500.0,0.00021917,2]
[320082164,1711140641054,-1438.79,0.00021917,2]
[320082166,1711140641063,-726.39,0.00021917,2]
[320082167,1711140641072,-500.0,0.00021917,2]
[320082170,1711140641081,-500.0,0.00021917,2]
[320082171,1711140641091,-500.0,0.00021917,2]
[320082174,1711140641100,-2585.24,0.00021917,2]
[320082176,1711140641110,-5775.19,0.00021917,2]
[320082178,1711140641120,-618.52,0.00021917,2]
[320082180,1711140641129,-500.0,0.00021917,2]
[320082182,1711140641138,-500.0,0.00021917,2]
[320082184,1711140641147,-500.0,0.00021917,2]
[320082186,1711140641158,-500.0,0.00021917,2]
[320082188,1711140641167,-901.86,0.00021917,2]
[320082190,1711140641176,-1113.12,0.00021917,2]
[320082192,1711140641185,-390.62078817,0.00021917,2]
[320082194,1711140641195,-4972.57,0.00021917,2]
[320082196,1711140641203,-500.0,0.00021917,2]
[320082198,1711140641213,-500.0,0.00021917,2]
[320082200,1711140641222,-500.0,0.00021917,2]
[320082202,1711140641230,-1427.15,0.00021917,2]
[320082204,1711140641239,-1917.53,0.00021917,2]
[320082206,1711140641248,-1156.73,0.00021917,2]
[320082208,1711140641257,-500.0,0.00021917,2]
[320082210,1711140641271,-642.29,0.00021917,2]
[320082212,1711140641281,-2874.0,0.00021917,2]
[320082214,1711140641290,-2455.11,0.00021917,2]
[320082216,1711140641300,-22600.91,0.00021917,2]
[320082218,1711140641310,-500.0,0.00021917,2]
[320082220,1711140641320,-677.85,0.00021917,2]
[320082222,1711140641329,-523.2,0.00021917,2]
[320082224,1711140641338,-2090.8,0.00021917,2]
[320082225,1711140641348,-500.0,0.00021917,2]
[320082227,1711140641359,-500.0,0.00021917,2]
[320082230,1711140641369,-500.0,0.00021917,2]
[320082232,1711140641379,-939.34,0.00021917,2]
[320082234,1711140641390,-1956.98,0.00021917,2]
[320082235,1711140641399,-1949.22,0.00021917,2]
[320082237,1711140641409,-1148.73,0.00021917,2]
[320082239,1711140641419,-500.0,0.00021917,2]
[320082242,1711140641428,-500.0,0.00021917,2]
[320082243,1711140641438,-531.76298413,0.00021917,2]
[320082246,1711140641448,-500.0,0.00021917,2]
[320082248,1711140641458,-1437.25,0.00021917,2]
[320082249,1711140641467,-7441.66,0.00021917,2]
[320082251,1711140641476,-5331.81,0.00021917,2]
[320082253,1711140641485,-500.0,0.00021917,2]
[320082256,1711140641495,-500.0,0.00021917,2]
[320082258,1711140641504,-500.0,0.00021917,2]
[320082260,1711140641513,-500.0,0.00021917,2]
[320082262,1711140641525,-2213.34,0.00021917,2]
[320082263,1711140641534,-3880.39,0.00021917,2]
[320082265,1711140641544,-500.0,0.00021917,2]
[320082268,1711140641553,-500.0,0.00021917,2]
[320082269,1711140641563,-1244.51,0.00021917,2]
[320082272,1711140641572,-559.98,0.00021917,2]
[320082274,1711140641581,-1607.99,0.00021917,2]
[320082275,1711140641591,-3843.34,0.00021917,2]
[320082278,1711140641600,-2045.14,0.00021917,2]
[320082280,1711140641610,-500.0,0.00021917,2]
[320082282,1711140641620,-500.0,0.00021917,2]
[320082284,1711140641629,-583.99,0.00021917,2]
[320082286,1711140641638,-1246.68,0.00021917,2]
[320082288,1711140641651,-500.0,0.00021917,2]
[320082290,1711140641660,-745.61,0.00021917,2]
[320082292,1711140641670,-3370.98,0.00021917,2]
[320082294,1711140641679,-500.0,0.00021917,2]
[320082296,1711140641688,-500.0,0.00021917,2]
[320082298,1711140641698,-2956.33,0.00021917,2]
[320082300,1711140641707,-500.0,0.00021917,2]
[320082302,1711140641716,-500.0,0.00021917,2]
[320082304,1711140641725,-752.1,0.00021917,2]
[320082306,1711140641735,-865.52,0.00021917,2]
[320082308,1711140641744,-500.0,0.00021917,2]
[320082310,1711140641753,-3669.0,0.00021917,2]
[320082312,1711140641762,-1299.63,0.00021917,2]
[320082314,1711140641776,-2910.98,0.00021917,2]
[320082316,1711140641785,-2926.74,0.00021917,2]
[320082318,1711140641794,-500.0,0.00021917,2]
[320082320,1711140641803,-502.34743358,0.00021917,2]
[320082322,1711140641813,-500.0,0.00021917,2]
[320082324,1711140641823,-500.0,0.00021917,2]
[320082326,1711140641833,-502.71490954,0.00021917,2]
[320082328,1711140641842,-500.0,0.00021917,2]
[320082330,1711140641851,-500.0,0.00021917,2]
[320082333,1711140641861,-918.92,0.00021917,2]
[320082334,1711140641870,-500.0,0.00021917,2]
[320082337,1711140641880,-1449.77,0.00021917,2]
[320082339,1711140641889,-500.0,0.00021917,2]
[320082340,1711140641898,-3109.99,0.00021917,2]
[320082342,1711140641907,-7096.34,0.00021917,2]
[320082345,1711140641917,-10138.86,0.00021917,2]
[320082347,1711140641927,-885.49,0.00021917,2]
[320082349,1711140641936,-979.74,0.00021917,2]
[320082351,1711140641945,-506.63848434,0.00021917,2]
[320082353,1711140641954,-805.14,0.00021917,2]
[320082355,1711140641964,-500.0,0.00021917,2]
[320082357,1711140641973,-14685.79,0.00021917,2]
[320082358,1711140641982,-2541.17,0.00021917,2]
[320082361,1711140641992,-500.0,0.00021917,2]
[320082362,1711140642001,-500.0,0.00021917,2]
[320082364,1711140642011,-500.0,0.00021917,2]
[320082367,1711140642023,-2155.51,0.00021917,2]
[320082369,1711140642032,-500.0,0.00021917,2]
[320082371,1711140642041,-500.0,0.00021917,2]
[320082373,1711140642051,-1390.65,0.00021917,2]
[320082375,1711140642060,-500.0,0.00021917,2]
[320082377,1711140642069,-7934.38,0.00021917,2]
[320082379,1711140642079,-500.0,0.00021917,2]
[320082381,1711140642088,-500.0,0.00021917,2]
[320082383,1711140642097,-352.50265181,0.00021917,2]
[320082385,1711140642106,-500.0,0.00021917,2]
[320082387,1711140642115,-500.0,0.00021917,2]
[320082389,1711140642125,-504.2,0.00021917,2]
[320082391,1711140642134,-500.0,0.00021917,2]
[320082393,1711140642143,-4022.36,0.00021917,2]
[320082395,1711140642152,-500.0,0.00021917,2]
[320082397,1711140642161,-500.0,0.00021917,2]
[320082399,1711140642170,-558.71,0.00021917,2]
[320082401,1711140642180,-2990.28,0.00021917,2]
[320082403,1711140642189,-2253.37,0.00021917,2]
[320082405,1711140642199,-500.0,0.00021917,2]
[320082407,1711140642209,-500.0,0.00021917,2]
[320082409,1711140642218,-500.0,0.00021917,2]
[320082410,1711140642227,-500.0,0.00021917,2]
[320082412,1711140642236,-500.0,0.00021917,2]
[320082414,1711140642246,-500.0,0.00021917,2]
[320082417,1711140642255,-500.0,0.00021917,2]
[320082426,1711140642341,-3075.37,0.00021917,2]
[320082428,1711140642350,-1554.56,0.00021917,2]
[320082430,1711140642361,-500.0,0.00021917,2]
[320082432,1711140642374,-20789.59,0.00021917,2]
[320082434,1711140642383,-2478.95,0.00021917,2]
[320082436,1711140642392,-591.5066032,0.00021917,2]
[320082438,1711140642402,-6399.51,0.00021917,2]
[320082440,1711140642411,-902.42,0.00021917,2]
[320082442,1711140642421,-860.1,0.00021917,2]
[320082445,1711140642430,-628.36795879,0.00021917,2]
[320082447,1711140642439,-5087.33,0.00021917,2]
[320082449,1711140642450,-1575.95,0.00021917,2]
[320082450,1711140642459,-500.0,0.00021917,2]
[320082452,1711140642468,-500.0,0.00021917,2]
[320082454,1711140642477,-500.0,0.00021917,2]
[320082457,1711140642487,-1001.36,0.00021917,2]
[320082459,1711140642498,-500.0,0.00021917,2]
[320082460,1711140642508,-6623.94,0.00021917,2]
[320082462,1711140642517,-500.0,0.00021917,2]
[320082465,1711140642530,-10402.04,0.00021917,2]
[320082467,1711140642540,-921.56,0.00021917,2]
[320082469,1711140642549,-500.0,0.00021917,2]
[320082471,1711140642559,-1272.94,0.00021917,2]
[320082473,1711140642568,-2298.65,0.00021917,2]
[320082475,1711140642577,-500.0,0.00021917,2]
[320082477,1711140642587,-500.0,0.00021917,2]
[320082479,1711140642596,-500.0,0.00021917,2]
[320082481,1711140642606,-500.0,0.00021917,2]
[320082483,1711140642615,-500.0,0.00021917,2]
[320082485,1711140642624,-781.35,0.00021917,2]
[320082487,1711140642633,-3546.37,0.00021917,2]
[320082489,1711140642643,-1037.49,0.00021917,2]
[320082491,1711140642652,-500.0,0.00021917,2]
[320082493,1711140642662,-3168.78,0.00021917,2]
[320082495,1711140642671,-2024.73,0.00021917,2]
[320082496,1711140642680,-248.90374583,0.00021917,2]
[320082498,1711140642689,-500.0,0.00021917,2]